fUSD/lending_fUSD_20260126
["ID","MTS","AMOUNT","RATE_DAILY","PERIOD"]
[403665651,1769456629075,-500.0,0.00015762,2]
[403665652,1769456629103,-500.0,0.00015762,2]
[403665653,1769456629132,-500.0,0.00015762,2]
[403665654,1769456629162,-500.0,0.00015762,2]
[403665655,1769456629191,-500.0,0.00015762,2]
[403665656,1769456629220,-124.91535751,0.00015762,2]
[403665657,1769456629303,-250.26063602,0.00015762,2]
[403665658,1769456629333,-500.0,0.00015762,2]
[403665659,1769456629364,-500.0,0.00015762,2]
[403665660,1769456629394,-500.0,0.00015762,2]
[403665661,1769456629424,-500.0,0.00015762,2]
[403665662,1769456629455,-500.0,0.00015762,2]
[403665663,1769456629485,-500.0,0.00015762,2]
[403665664,1769456629514,-500.0,0.00015762,2]
[403665665,1769456629543,-517.3942322,0.00015762,2]
[403665666,1769456629571,-500.0,0.00015762,2]
[403665667,1769456629843,-267.65486822,0.00015762,2]
[403665668,1769456629857,-232.34513178,0.00015762,2]
[403665669,1769456629867,-232.35513178,0.00015762,2]
[403665670,1769456640564,-194.486274,0.00015585,2]
[403665671,1769456640600,-267.64486822,0.00015762,2]
[403665672,1769456640630,-500.0,0.00015762,2]
[403665673,1769456640663,-500.0,0.00015762,2]
[403665674,1769456640692,-500.0,0.00015762,2]
[403665675,1769456640722,-500.0,0.00015762,2]
[403665676,1769456640753,-500.0,0.00015762,2]
[403665677,1769456640785,-500.0,0.00015762,2]
[403665678,1769456640815,-500.0,0.00015762,2]
[403665679,1769456640848,-500.0,0.00015762,2]
[403665680,1769456640878,-500.0,0.00015762,2]
[403665681,1769456640924,-500.0,0.00015762,2]
[403665682,1769456640955,-500.0,0.00015762,2]
[403665683,1769456640984,-500.0,0.00015762,2]
[403665684,1769456641014,-500.0,0.00015762,2]
[403665685,1769456641052,-500.0,0.00015762,2]
[403665686,1769456641087,-500.0,0.00015762,2]
[403665687,1769456641120,-500.0,0.00015762,2]
[403665688,1769456641152,-500.0,0.00015762,2]
[403665689,1769456641183,-500.0,0.00015762,2]
[403665690,1769456641214,-500.0,0.00015762,2]
[403665691,1769456641542,-75.74771556,0.00015762,2]
[403665692,1769456641557,-0.01,0.00015762,2]
[403665693,1769456689958,-4842.0922,0.00015664,2]
[403665694,1769456689980,-315.8256,0.00015664,2]
[403665695,1769456690188,-200.0,0.00015691,2]
[403665696,1769456690215,-200.0,0.00015691,2]
[403665697,1769456690246,-206.8526709,0.00015691,2]
[403665698,1769456690275,-500.0,0.00015691,2]
[403665699,1769456690303,-240.41022385,0.00015691,2]
[403665700,1769456690330,-150.0,0.00015691,2]
[403665701,1769456690360,-500.0,0.00015746,2]
[403665702,1769456690388,-150.0,0.00015746,2]
[403665703,1769456690417,-300.0,0.00015761,2]
[403665704,1769456690444,-300.0,0.00015762,2]
[403665705,1769456690475,-424.24228444,0.00015762,2]
[403665706,1769456690506,-500.0,0.00015762,2]
[403665707,1769456690537,-500.0,0.00015762,2]
[403665708,1769456690567,-500.0,0.00015762,2]
[403665709,1769456690597,-156.99964162,0.00015762,2]
[403665710,1769456690805,-343.00035838,0.00015762,2]
[403665711,1769456693338,-500.0,0.00015762,2]
[403665712,1769456693371,-500.0,0.00015762,2]
[403665713,1769456693402,-500.0,0.00015762,2]
[403665714,1769456693435,-500.0,0.00015762,2]
[403665715,1769456693465,-1200.0,0.00015763,2]
[403665716,1769456693495,-300.0,0.00015763,2]
[403665717,1769456693523,-221.0,0.00015763,2]
[403665718,1769456693554,-500.0,0.00015763,2]
[403665719,1769456693583,-500.0,0.00015763,2]
[403665720,1769456693611,-58.01,0.00015763,2]
[403665721,1769456694608,-441.99,0.00015763,2]
[403665722,1769456696482,-500.0,0.00015763,2]
[403665723,1769456696512,-500.0,0.00015763,2]
[403665724,1769456696542,-500.0,0.00015763,2]
[403665725,1769456696571,-500.0,0.00015763,2]
[403665726,1769456696599,-188.89,0.00015763,2]
[403665727,1769456696627,-181.0,0.00015764,3]
[403665728,1769456696656,-282.0,0.00015764,2]
[403665729,1769456696686,-200.0,0.00015764,2]
[403665730,1769456696856,-4296.23,0.00015764,2]
[403665731,1769456754574,-361.02572261,0.00015393,2]
[403665732,1769456759171,-229.3480686,0.00015393,2]
[403665733,1769456762562,-2577.29620879,0.00015393,2]
[403665734,1769456762591,-155.23480298,0.00015664,2]
[403665735,1769456762622,-1077.07029,0.00015685,2]
[403665736,1769456762651,-150.0,0.00015691,2]
[403665737,1769456762680,-150.0,0.00015691,2]
[403665738,1769456762723,-500.0,0.00015691,2]
[403665739,1769456762755,-150.0,0.00015746,2]
[403665740,1769456762785,-150.0,0.00015746,2]
[403665741,1769456762849,-171.92393582,0.00015746,2]
[403665742,1769456762948,-180.80739646,0.00015746,2]
[403665743,1769456765305,-147.26866772,0.00015746,2]
[403665744,1769456765337,-300.0,0.00015763,2]
[403665745,1769456765370,-1200.0,0.00015763,2]
[403665746,1769456765404,-300.0,0.00015763,2]
[403665747,1769456765435,-165.97106181,0.00015763,2]
[403665748,1769456765465,-500.0,0.00015763,2]
[403665749,1769456765495,-500.0,0.00015763,2]
[403665750,1769456765527,-500.0,0.00015763,2]
[403665751,1769456765556,-200.0,0.00015764,2]
[403665752,1769456766026,-2373.53054094,0.00015764,2]
[403665753,1769456766133,-210.7921822,0.00015764,2]
[403665754,1769456766475,568.49885824,0.00011773,2]
[403665755,1769456766512,500.0,0.00011773,2]
[403665756,1769456766891,257.15915769,0.00012321,2]
[403665757,1769456766935,500.0,0.00011773,2]
[403665758,1769456768179,-157.22337686,0.00015763,2]
[403665759,1769456768288,-342.77662314,0.00015763,2]
[403665760,1769456768323,-500.0,0.00015763,2]
[403665761,1769456768359,-500.0,0.00015763,2]
[403665762,1769456768433,-7314.45675372,0.00015764,2]
[403665763,1769456768521,-10000.01,0.00015764,2]
[403665764,1769456768653,-10000.01,0.00015764,2]
[403665765,1769456768775,-10000.01,0.00015764,2]
[403665766,1769456768918,-10000.01,0.00015764,2]
[403665767,1769456769080,-10000.01,0.00015764,2]
[403665768,1769456770120,-10000.01,0.00015764,2]
[403665769,1769456771213,-10000.01,0.00015764,2]
[403665770,1769456777410,-500.0,0.00015763,2]
[403665771,1769456777468,-500.0,0.00015763,2]
[403665772,1769456777532,-500.0,0.00015763,2]
[403665773,1769456777658,-7000.01,0.00015764,2]
[403665774,1769456778152,-467.13139279,0.00015764,2]
[403665775,1769456779597,-10000.01,0.00015764,2]
[403665776,1769456779720,-10000.01,0.00015764,2]
[403665777,1769456779848,-10000.01,0.00015764,2]
[403665778,1769456779992,-10000.01,0.00015764,2]
[403665779,1769456781531,-206.68971342,0.00015764,2]
[403665780,1769456781600,-10000.01,0.00015764,2]
[403665781,1769456781627,-10000.01,0.00015764,2]
[403665782,1769456783028,-201.62648842,0.00015764,2]
[403665783,1769456786564,-198.17893854,0.00015691,3]
[403665784,1769456799543,-220.40832684,0.00015664,2]
[403665785,1769456801190,-224.63899196,0.00015664,2]
[403665786,1769456804937,-272.86586766,0.00015664,2]
[403665787,1769456807013,-158.95571791,0.00015664,2]
[403665788,1769456814741,-153.61384336,0.00015664,2]
[403665789,1769456817256,-332.29151069,0.00015664,2]
[403665790,1769456818767,-192.55584767,0.00015664,2]
[403665791,1769456822154,-300.0,0.00015663,2]
[403665792,1769456822178,-26.17817803,0.00015664,2]
[403665793,1769456824482,-337.25651874,0.00015423,2]
[403665794,1769456825685,-162.74348126,0.00015423,2]
[403665795,1769456825708,-119.54012592,0.00015664,2]
[403665796,1769456828391,-180.14659574,0.00015664,2]
[403665800,1769456833659,-151.29273343,0.00015664,2]
[403665801,1769456835616,-162.54389024,0.00015664,2]
[403665802,1769456838169,-185.90449884,0.00015664,2]
[403665803,1769456840028,-190.59259671,0.00015664,2]
[403665804,1769456859534,-202.72394855,0.00015664,2]
[403665805,1769456861480,-200.0,0.00015664,2]
[403665806,1769456863035,-376.42432675,0.00015664,2]
[403665807,1769456865275,-247.27605145,0.00015664,2]
[403665808,1769456867173,-226.2996218,0.00015664,2]
[403665809,1769456869435,-183.1121574,0.00015664,2]
[403665810,1769456876189,10000.0,0.00015001,2]
[403665811,1769456886577,10000.0,0.00015001,2]
[403665812,1769456889153,166.66,0.00014359,2]
[403665813,1769456889406,166.66,0.00014662,2]
[403665814,1769456889903,166.66,0.00014964,2]
[403665815,1769456894915,200.0,0.00014942,2]
[403665816,1769456895126,10000.0,0.00015001,2]
[403665817,1769456905863,10000.0,0.00015001,2]
[403665818,1769456907010,-253.89176773,0.0001519,2]
[403665819,1769456910007,-474.82811709,0.0001519,2]
[403665820,1769456912259,-208.57954353,0.0001519,2]
[403665821,1769456914343,-250.0,0.0001519,2]
[403665822,1769456943083,500.0,0.00011773,2]
[403665823,1769456943133,1000.0,0.00012321,2]
[403665824,1769456943175,1500.0,0.00012868,2]
[403665825,1769456943246,2000.0,0.00013416,2]
[403665826,1769456943290,1604.50357643,0.00014512,2]
[403665827,1769456943347,2500.0,0.00013964,2]
[403665828,1769456954933,-2657.49153765,0.0001519,2]
[403665829,1769456954963,-166.66,0.00015266,2]
[403665830,1769456954993,-166.66,0.00015569,2]
[403665831,1769456955021,-796.0,0.00015663,2]
[403665832,1769456955050,-300.0,0.00015663,2]
[403665833,1769456955150,-1826.3869247,0.00015664,2]
[403665834,1769456955190,-748.91190168,0.00015664,2]
[403665835,1769456955224,-8502.18619664,0.00015664,2]
[403665836,1769456955332,-371.76315653,0.00015664,2]
[403665837,1769456955359,-301.82106146,0.00015691,3]
[403665838,1769456955386,-150.0,0.00015691,2]
[403665839,1769456955413,-201.93286099,0.00015708,2]
[403665840,1769456955440,-578.20924308,0.00015708,2]
[403665841,1769456955472,-500.0,0.00015754,2]
[403665842,1769456955504,-500.0,0.00015754,2]
[403665843,1769456955535,-500.0,0.00015754,2]
[403665844,1769456955565,-500.0,0.00015754,2]
[403665845,1769456955599,-500.0,0.00015754,2]
[403665846,1769456955630,-500.0,0.00015754,2]
[403665847,1769456955661,-292.55735588,0.00015754,2]
[403665848,1769456955753,-207.44264412,0.00015754,2]
[403665849,1769456955784,-454.91183155,0.00015754,2]
[403665850,1769456955816,-439.43464795,0.00015754,2]
[403665851,1769456955850,-300.0,0.00015754,2]
[403665852,1769456955879,-500.0,0.00015755,2]
[403665853,1769456955908,-151.0,0.00015755,2]
[403665854,1769456955939,-695.39793187,0.00015755,2]
[403665855,1769456955969,-500.0,0.00015755,2]
[403665856,1769456955998,-151.0,0.00015755,2]
[403665857,1769456956027,-151.0,0.00015755,2]
[403665858,1769456956071,-500.0,0.00015755,2]
[403665859,1769456956106,-151.0,0.00015755,2]
[403665860,1769456956137,-500.0,0.00015755,2]
[403665861,1769456956167,-151.0,0.00015755,2]
[403665862,1769456956272,-500.0,0.00015755,2]
[403665863,1769456956301,-500.0,0.00015755,2]
[403665864,1769456956330,-151.0,0.00015755,2]
[403665865,1769456956359,-500.0,0.00015755,2]
[403665866,1769456956388,-500.0,0.00015755,2]
[403665867,1769456956653,-151.0,0.00015755,2]
[403665868,1769456956682,-500.0,0.00015755,2]
[403665869,1769456956710,-500.0,0.00015755,2]
[403665870,1769456956738,-151.0,0.00015755,2]
[403665871,1769456956766,-500.0,0.00015755,2]
[403665872,1769456956794,-500.0,0.00015755,2]
[403665873,1769456956823,-516.0548062,0.00015755,2]
[403665874,1769456956932,-61.9003876,0.00015755,2]
[403665875,1769456956962,-200.0,0.00015755,2]
[403665876,1769456956992,-500.0,0.00015755,2]
[403665877,1769456957020,-174.61919141,0.00015755,2]
[403665878,1769456957048,-500.0,0.00015755,2]
[403665879,1769456957076,-500.0,0.00015755,2]
[403665880,1769456957105,-500.0,0.00015755,2]
[403665881,1769456957135,-151.0,0.00015755,2]
[403665882,1769456957163,-394.40815651,0.00015755,2]
[403665883,1769456957194,-151.0,0.00015755,2]
[403665884,1769456957222,-250.0,0.00015755,2]
[403665885,1769456957250,-151.0,0.00015755,2]
[403665886,1769456957277,-250.0,0.00015755,2]
[403665887,1769456957304,-151.0,0.00015755,2]
[403665888,1769456957333,-250.0,0.00015755,2]
[403665889,1769456957360,-151.0,0.00015755,2]
[403665890,1769456957388,-200.0,0.00015755,2]
[403665891,1769456957415,-201.93286099,0.00015755,2]
[403665892,1769456957442,-201.67810698,0.00015755,2]
[403665893,1769456957552,-120.93259302,0.00015755,2]
[403665894,1769456957579,-250.0,0.00015755,2]
[403665895,1769456957606,-250.0,0.00015755,2]
[403665896,1769456957635,-3543.0,0.00015755,2]
[403665897,1769456957663,-250.0,0.00015755,2]
[403665898,1769456957691,-250.0,0.00015755,2]
[403665899,1769456957719,-250.0,0.00015755,2]
[403665900,1769456957932,-250.0,0.00015755,2]
[403665901,1769456957962,-250.0,0.00015755,2]
[403665902,1769456957992,-823.77908852,0.00015755,2]
[403665903,1769456958021,-250.0,0.00015755,2]
[403665904,1769456958050,-1223.0,0.00015755,2]
[403665905,1769456958078,-620.0,0.00015755,2]
[403665906,1769456958108,-500.0,0.00015755,2]
[403665907,1769456958138,-500.0,0.00015755,2]
[403665908,1769456958167,-500.0,0.00015755,2]
[403665909,1769456958290,-500.0,0.00015755,2]
[403665910,1769456958318,-500.0,0.00015755,2]
[403665911,1769456958347,-500.0,0.00015755,2]
[403665912,1769456958376,-190.59259671,0.00015755,2]
[403665913,1769456958405,-500.0,0.00015755,2]
[403665914,1769456958435,-241.97819272,0.00015755,2]
[403665915,1769456958464,-250.0,0.00015755,2]
[403665916,1769456958493,-250.0,0.00015755,2]
[403665917,1769456958521,-228.40126391,0.00015755,2]
[403665918,1769456958550,-500.0,0.00015755,2]
[403665919,1769456958578,-951.90366667,0.00015763,2]
[403665920,1769456959875,-924.90801121,0.00015763,2]
[403665921,1769456959903,-216.85110539,0.00015763,2]
[403665922,1769456959936,-937.29942835,0.00015763,5]
[403665923,1769456960670,-848.50929015,0.00015764,2]
[403665924,1769456960688,-216.85110539,0.00015764,2]
[403665925,1769456960704,-937.29942835,0.00015764,2]
[403665926,1769456960718,-5841.8929101,0.00015764,2]
[403665927,1769456960739,-10000.01,0.00015764,2]
[403665928,1769456960881,-10000.01,0.00015764,2]
[403665929,1769456961070,-10000.01,0.00015764,2]
[403665930,1769456961220,-10000.01,0.00015764,2]
[403665931,1769456961359,-10000.01,0.00015764,2]
[403665932,1769456961509,-10000.01,0.00015764,2]
[403665933,1769456961653,-10000.01,0.00015764,2]
[403665934,1769456961766,-10000.01,0.00015764,2]
[403665935,1769456961906,-10000.01,0.00015764,2]
[403665936,1769457009517,-174.98741262,0.00015664,2]
[403665937,1769457013541,-240.41329729,0.00015664,2]
[403665938,1769457015086,-156.65161085,0.00015664,2]
[403665939,1769457016560,-292.60400663,0.00015664,2]
[403665940,1769457018176,-189.91299995,0.00015655,2]
[403665941,1769457021785,-225.08216547,0.00015655,2]
[403665942,1769457024335,-217.37327442,0.00015655,2]
[403665943,1769457026340,-170.56030923,0.00015655,2]
[403665944,1769457028522,-165.93834011,0.00015655,2]
[403665954,1769457031774,-196.2213971,0.00015655,2]
[403665956,1769457031787,-5886.4180569,0.00015655,2]
[403665957,1769457031799,-1422.63899574,0.00015655,2]
[403665958,1769457031841,-897.13744444,0.00015655,2]
[403665959,1769457031853,-426.83436047,0.00015655,2]
[403665960,1769457031864,-306597.60923345,0.00015655,2]
[403665961,1769457031875,-7233.79555622,0.00015655,2]
[403665962,1769457031886,-782.76857672,0.00015655,2]
[403665963,1769457031909,-459.25366329,0.00015655,2]
[403665964,1769457032006,-1349.61288932,0.00015655,2]
[403665965,1769457032058,-4201.65523545,0.00015655,2]
[403665971,1769457034987,-267.86018064,0.00015655,2]
[403665973,1769457037863,-5778.20325848,0.00015655,2]
[403665974,1769457037969,-20345.24128045,0.00015655,2]
[403665975,1769457038026,-15250.78490267,0.00015655,2]
[403666003,1769457039970,-396.71618048,0.00015655,2]
[403666004,1769457040023,-108491.27134655,0.00015655,2]
[403666005,1769457040035,-519047.11035245,0.00015655,2]
[403666006,1769457040045,-765.99688209,0.00015664,2]
[403666007,1769457040055,-152.18717547,0.00015691,2]
[403666008,1769457040064,-1923.58577119,0.00015755,2]
[403666009,1769457040074,-1248.69114802,0.00015755,2]
[403666010,1769457040083,-6208.30798669,0.00015755,2]
[403666011,1769457040092,-300.0,0.00015762,2]
[403666012,1769457040102,-300.0,0.00015762,2]
[403666013,1769457040111,-1200.0,0.00015762,2]
[403666014,1769457040121,-1000.0,0.00015764,2]
[403666015,1769457040130,-151.0,0.00015777,2]
[403666016,1769457040139,-151.0,0.00015781,2]
[403666017,1769457040149,-151.0,0.00015785,2]
[403666018,1769457040158,-500.0,0.00015801,2]
[403666019,1769457040168,-500.0,0.00015801,2]
[403666020,1769457040178,-500.0,0.00015855,2]
[403666021,1769457040187,-500.0,0.00015855,2]
[403666022,1769457040197,-500.0,0.00015862,2]
[403666023,1769457040206,-506.33966749,0.00015863,2]
[403666024,1769457040216,-500.0,0.00015863,2]
[403666025,1769457040226,-500.0,0.00015863,2]
[403666026,1769457040235,-500.0,0.00015863,2]
[403666027,1769457040244,-500.0,0.00015863,2]
[403666028,1769457040254,-541.65463355,0.00015863,2]
[403666029,1769457040263,-500.0,0.00015863,2]
[403666030,1769457040273,-500.0,0.00015863,2]
[403666031,1769457040284,-500.0,0.00015863,2]
[403666032,1769457040295,-500.0,0.00015863,2]
[403666033,1769457040305,-500.0,0.00015863,2]
[403666034,1769457040314,-611.09410046,0.00015863,2]
[403666035,1769457040324,-500.0,0.00015863,2]
[403666036,1769457040333,-500.0,0.00015863,2]
[403666037,1769457040343,-500.0,0.00015863,2]
[403666038,1769457040352,-500.0,0.00015863,2]
[403666039,1769457040362,-500.0,0.00015863,2]
[403666040,1769457040372,-500.0,0.00015863,2]
[403666041,1769457040382,-500.0,0.00015863,2]
[403666042,1769457040392,-500.0,0.00015863,2]
[403666043,1769457040402,-500.0,0.00015863,2]
[403666044,1769457040412,-500.0,0.00015863,2]
[403666045,1769457040422,-500.0,0.00015863,2]
[403666046,1769457040431,-500.0,0.00015863,2]
[403666047,1769457040441,-500.0,0.00015863,2]
[403666048,1769457040450,-500.0,0.00015863,2]
[403666049,1769457040460,-500.0,0.00015863,2]
[403666050,1769457040469,-500.0,0.00015863,2]
[403666051,1769457040479,-254.46436411,0.00015863,2]
[403666052,1769457040489,-500.0,0.00015863,2]
[403666053,1769457040499,-500.0,0.00015863,2]
[403666054,1769457040509,-500.0,0.00015863,2]
[403666055,1769457040519,-500.0,0.00015863,2]
[403666056,1769457040528,-500.0,0.00015863,2]
[403666057,1769457040538,-500.0,0.00015863,2]
[403666058,1769457040547,-500.0,0.00015863,2]
[403666059,1769457040557,-500.0,0.00015863,2]
[403666060,1769457040567,-500.0,0.00015863,2]
[403666061,1769457040577,-500.0,0.00015863,2]
[403666062,1769457040587,-500.0,0.00015863,2]
[403666063,1769457040597,-500.0,0.00015863,2]
[403666065,1769457040607,-500.0,0.00015863,2]
[403666067,1769457040616,-500.0,0.00015863,2]
[403666068,1769457040625,-500.0,0.00015863,2]
[403666069,1769457040633,-509.44466748,0.00015863,2]
[403666070,1769457040643,-500.0,0.00015863,2]
[403666071,1769457040652,-500.0,0.00015863,2]
[403666072,1769457040662,-500.0,0.00015863,2]
[403666073,1769457040672,-500.0,0.00015863,2]
[403666074,1769457040681,-500.0,0.00015863,2]
[403666075,1769457040691,-506.5749784,0.00015863,2]
[403666076,1769457040701,-500.0,0.00015863,2]
[403666077,1769457040712,-500.0,0.00015863,2]
[403666078,1769457040721,-502.44260764,0.00015863,2]
[403666079,1769457040731,-500.0,0.00015863,2]
[403666080,1769457040741,-500.0,0.00015863,2]
[403666081,1769457040750,-500.0,0.00015863,2]
[403666082,1769457040760,-500.0,0.00015863,2]
[403666083,1769457040770,-500.0,0.00015863,2]
[403666084,1769457040780,-506.97630376,0.00015863,2]
[403666085,1769457040790,-342.1996177,0.00015863,2]
[403666086,1769457040799,-500.0,0.00015863,2]
[403666087,1769457040811,-500.0,0.00015863,2]
[403666088,1769457040821,-500.0,0.00015863,2]
[403666089,1769457040830,-500.0,0.00015863,2]
[403666090,1769457040839,-912.33,0.00015863,2]
[403666091,1769457040849,-500.0,0.00015863,2]
[403666092,1769457040858,-150.00221203,0.00015867,2]
[403666093,1769457040867,-166.66,0.00015871,2]
[403666094,1769457040876,-600.0,0.000159,5]
[403666095,1769457040885,-500.0,0.0001591,2]
[403666096,1769457040895,-500.0,0.0001591,2]
[403666097,1769457040904,-6582.6636573,0.00015912,2]
[403666098,1769457040914,-8873.94935315,0.00015912,2]
[403666099,1769457040923,-200.0,0.00015922,2]
[403666100,1769457040938,-200.0,0.00015922,2]
[403666101,1769457040947,-197.75906052,0.00015965,2]
[403666102,1769457040956,-500.0,0.00015965,2]
[403666103,1769457040965,-1316.48613294,0.00015977,2]
[403666104,1769457040975,-831.12341109,0.00015981,2]
[403666105,1769457040984,-294.0,0.00015988,2]
[403666106,1769457040994,-150.0,0.00016,2]
[403666107,1769457041003,-500.0,0.0001602,2]
[403666108,1769457041013,-954.0,0.00016033,2]
[403666109,1769457041021,-854.9650287,0.00016035,2]
[403666110,1769457041031,-582.64390118,0.00016075,2]
[403666111,1769457041040,-842.0,0.00016079,2]
[403666112,1769457041050,-200.0,0.00016081,2]
[403666113,1769457041059,-150.0,0.000161,2]
[403666114,1769457041068,-295.86658145,0.00016137,2]
[403666115,1769457041077,-912.33,0.00016137,2]
[403666116,1769457041086,-6582.6636573,0.00016161,2]
[403666117,1769457041096,-8873.94935315,0.00016161,2]
[403666118,1769457041105,-150.0,0.000162,2]
[403666119,1769457041114,-200.0,0.00016242,2]
[403666120,1769457041123,-201.93286099,0.00016256,2]
[403666121,1769457041133,-151.0,0.00016303,2]
[403666122,1769457041143,-181.08010149,0.00016303,2]
[403666123,1769457041152,-249.0,0.00016303,2]
[403666124,1769457041162,-209.40437684,0.00016303,2]
[403666125,1769457041171,-854.2589148,0.00016303,2]
[403666126,1769457041180,-642.94,0.00016303,2]
[403666127,1769457041189,-500.0,0.00016303,2]
[403666128,1769457041199,-155.23480298,0.00016323,2]
[403666129,1769457041209,-200.0,0.00016404,2]
[403666130,1769457041219,-500.0,0.00016409,2]
[403666131,1769457041229,-500.0,0.00016409,2]
[403666132,1769457041238,-226.94622895,0.00016409,2]
[403666133,1769457041247,-6582.6636573,0.00016409,2]
[403666134,1769457041256,-8873.94935315,0.00016409,2]
[403666135,1769457041266,-912.33,0.00016411,2]
[403666136,1769457041275,-856.0,0.00016423,2]
[403666137,1769457041284,-307.45601862,0.0001643,2]
[403666138,1769457041294,-201.139,0.00016437,2]
[403666139,1769457041303,-500.0,0.00016438,2]
[403666140,1769457041313,-260.0,0.00016438,2]
[403666141,1769457041323,-316.79448902,0.00016438,2]
[403666142,1769457041333,-235.18438983,0.00016438,2]
[403666143,1769457041342,-150.0,0.00016438,2]
[403666144,1769457041351,-300.0,0.00016438,2]
[403666145,1769457041360,-300.0,0.00016438,2]
[403666146,1769457041369,-300.0,0.00016438,2]
[403666147,1769457041379,-300.0,0.00016438,2]
[403666148,1769457041389,-300.0,0.00016438,2]
[403666149,1769457041398,-300.0,0.00016438,2]
[403666150,1769457041407,-300.0,0.00016438,2]
[403666151,1769457041417,-152.52,0.00016438,2]
[403666152,1769457041426,-828.7855079,0.00016438,2]
[403666153,1769457041435,-828.7855079,0.00016438,2]
[403666154,1769457041444,-828.7855079,0.00016438,2]
[403666155,1769457041454,-828.7855079,0.00016438,2]
[403666156,1769457041463,-828.7855079,0.00016438,2]
[403666157,1769457041472,-828.7855079,0.00016438,2]
[403666158,1769457041481,-828.7855079,0.00016438,2]
[403666159,1769457041491,-828.7855079,0.00016438,2]
[403666160,1769457041500,-828.7855079,0.00016438,2]
[403666161,1769457041510,-828.7855079,0.00016438,2]
[403666162,1769457041520,-828.7855079,0.00016438,2]
[403666163,1769457041530,-828.7855079,0.00016438,2]
[403666164,1769457041539,-828.7855079,0.00016438,2]
[403666165,1769457041548,-828.7855079,0.00016438,2]
[403666166,1769457041558,-828.7855079,0.00016438,2]
[403666167,1769457041567,-828.7855079,0.00016438,2]
[403666168,1769457041576,-828.7855079,0.00016438,2]
[403666169,1769457041585,-828.7855079,0.00016438,2]
[403666170,1769457041595,-828.7855079,0.00016438,2]
[403666171,1769457041604,-828.7855079,0.00016438,2]
[403666172,1769457041613,-828.7855079,0.00016438,2]
[403666173,1769457041623,-828.7855079,0.00016438,2]
[403666174,1769457041632,-828.7855079,0.00016438,2]
[403666175,1769457041641,-828.7855079,0.00016438,2]
[403666176,1769457041651,-828.7855079,0.00016438,2]
[403666177,1769457041660,-828.7855079,0.00016438,2]
[403666178,1769457041671,-828.7855079,0.00016438,2]
[403666179,1769457041681,-828.7855079,0.00016438,2]
[403666180,1769457041691,-828.7855079,0.00016438,2]
[403666181,1769457041701,-828.7855079,0.00016438,2]
[403666182,1769457041710,-828.7855079,0.00016438,2]
[403666183,1769457041720,-828.7855079,0.00016438,2]
[403666184,1769457041731,-828.7855079,0.00016438,2]
[403666185,1769457041740,-828.7855079,0.00016438,2]
[403666186,1769457041750,-828.7855079,0.00016438,2]
[403666187,1769457041759,-828.7855079,0.00016438,2]
[403666188,1769457041768,-828.7855079,0.00016438,2]
[403666189,1769457041778,-828.7855079,0.00016438,2]
[403666190,1769457041787,-828.7855079,0.00016438,2]
[403666191,1769457041798,-828.7855079,0.00016438,2]
[403666192,1769457041808,-828.7855079,0.00016438,2]
[403666193,1769457041818,-828.7855079,0.00016438,2]
[403666194,1769457041827,-828.7855079,0.00016438,2]
[403666195,1769457041836,-828.7855079,0.00016438,2]
[403666196,1769457041845,-828.7855079,0.00016438,2]
[403666197,1769457041855,-828.7855079,0.00016438,2]
[403666198,1769457041865,-828.7855079,0.00016438,2]